[Event "1st Serbian League 2022"]
[Site "Vrnjacka Banja"]
[Date "2022.09.23"]
[Round "4.19"]
[White "Yilmazyerli, Mert"]
[Black "Sanal, Vahap"]
[Result "1-0"]
[ECO "A05"]
[WhiteElo "2533"]
[BlackElo "2595"]
[Annotator "TA"]
[PlyCount "81"]
[EventDate "2022.09.20"]
[EventType "team-tourn"]
[EventCountry "SRB"]
[SourceTitle "playchess.com"]
[Source "ChessBase"]
[SourceQuality "1"]
[TimeControl "40/5400+30:1800+30"]

{[%evp 11,81,22,24,18,29,29,28,20,62,45,49,0,32,43,43,25,29,24,60,67,97,93,117,122,131,118,120,56,46,61,49,52,39,33,43,40,76,62,159,142,184,191,249,175,412,267,281,222,543,521,742,556,29976,1769,29965,4951,5377,0,3012,1726,2911,3212,29988,1117,1810,0,29988,29989,29989,29990,29993,29994]} 1. Nf3 {[%emt 1:31:00]} Nf6 {[%emt 0:00:54]} 2. g3 {[%emt 0:00:00]} b5 {[%emt 0:00:13]} 3. Bg2 {[%emt 0:00:00]} Bb7 {[%emt 0:00:07]} 4. O-O {[%emt 0:00:00]} e6 {[%emt 0:00:05]} 5. d3 {[%emt 0:00:00]} Be7 {[%emt 0:00:21]} 6. e4 {[%emt 0:00:00]} d6 {[%emt 0:00:05]} 7. Nd4 {[%emt 0:00:00] A05: Réti Opening: 1 Nf3 Nf6.} a6 {[%emt 0:15:40]} 8. Nb3 {[%emt 0:00:00]} c6 {[%emt 0:03:03]} 9. a4 {[%emt 0:00:00] [#] White has an edge.} Nfd7 $146 {[%emt 0:03:24]} ({Predecessor:} 9... b4 10. d4 d5 11. N1d2 O-O 12. Re1 Nbd7 13. e5 Ne8 14. c4 bxc3 15. bxc3 c5 {½-½ (36) Lorparizangeneh,S (2491)-Percivaldi,M (2376) Manavgat 2018}) 10. Qe1 {[%emt 0:00:00]} Qc7 {[%emt 0:02:21]} 11. d4 {[%emt 0:00:00]} (11. Na5 $14) 11... Nb6 {[%emt 0:03:02]} 12. Nc3 {[%emt 0:00:00]} O-O {[%emt 0:06:53]} 13. Na5 {[%emt 0:00:00]} Bc8 {[%emt 0:00:23]} 14. Be3 {[%emt 0:00:00]} d5 {[%emt 0:11:53]} 15. Bf4 {[%emt 0:00:00]} Qd7 {[%emt 0:00:24]} 16. Nb3 {[%emt 0:00:00]} b4 {[%emt 0:05:14] [#]} 17. a5 $1 {[%emt 0:00:00][%cal Ba4a5,Ba5b6][%mdl 32]} bxc3 {[%emt 0:02:19]} 18. axb6 {[%emt 0:00:00]} cxb2 {[%emt 0:00:09]} 19. Ra5 {[%emt 0:00:00]} ({Better is} 19. Ra4 $16) 19... Bd8 $1 $14 {[%emt 0:03:50]} 20. Nc5 {[%emt 0:00:00]} Qe7 {[%emt 0:00:15] Against b7} 21. Ra2 {[%emt 0:00:00]} Bxb6 {[%emt 0:01:32]} 22. Rxb2 {[%emt 0:00:00]} Bc7 {[%emt 0:09:36]} 23. Qe3 {[%emt 0:00:00]} Qd8 {[%emt 0:05:00]} 24. Bg5 {[%emt 0:00:00]} Qe8 {[%emt 0:03:00] [#] White leaves nothing to chance now.} (24... f6 $14 25. Bf4 a5) 25. exd5 $1 $16 {[%emt 0:00:00] White is much more active.} cxd5 {[%emt 0:02:53]} 26. c4 $1 {[%emt 0:00:00][%cal Bc2c4,Bc4d5][%mdl 32]} Qc6 {[%emt 0:06:42]} (26... Nd7 $142 27. cxd5 exd5 28. Bxd5 Ra7) 27. Rc1 {[%emt 0:01:06] Strongly threatening cxd5.} h6 $2 {[%emt 0:03:24] [#]} (27... Ra7 28. Nd3 Qd7) 28. Bxh6 $1 {[%emt 0:02:40][%mdl 512]} gxh6 {[%emt 0:00:32]} 29. Qxh6 {[%emt 0:00:17]} Bd8 {[%emt 0:01:00] Inhibits Qg5+.} (29... Ra7 30. Ne4 dxe4 31. Qg5+ Kh7) 30. Qh5 $18 {[%emt 0:02:14]} f5 {[%emt 0:03:46]} 31. cxd5 {[%emt 0:03:12]} Qd6 {[%emt 0:03:03]} 32. Qg6+ {[%emt 0:02:01]} Kh8 {[%emt 0:00:02]} 33. Qh6+ {[%emt 0:00:22]} (33. Nxe6 $142 Bxe6 34. Rb7 Be7 35. dxe6 Ra7 36. Rxa7 Qb4 37. Rcc7 Nd7 38. exd7) 33... Kg8 {[%emt 0:00:01]} 34. Qg6+ {[%emt 0:00:46]} Kh8 {[%emt 0:00:01]} 35. Nb7 {[%emt 0:01:50][%cal Bc5b7,Bb7d8,Bd8f7][%mdl 32]} Qa3 {[%emt 0:00:40]} 36. Rxc8 {[%emt 0:00:17][%cal Ob7d8]} Qxb2 {[%emt 0:00:11]} 37. Qh6+ {[%emt 0:00:05]} (37. Nxd8 $142 Ra7 38. dxe6 Qb1+ 39. Bf1 Qc1 40. Rxc1 Rxd8 41. Qf6+ Kg8 42. Qxd8+ Kh7 43. Qh4+ Kg6 44. Rc8) 37... Kg8 {[%emt 0:00:02]} 38. Qg6+ $40 {[%emt 0:00:05][%mdl 128] White is up to no good.} (38. Nxd8 $18 Ra7 39. dxe6 Qb1+ 40. Bf1) 38... Kh8 {[%emt 0:00:01]} 39. Nxd8 {[%emt 0:01:03][%csl Gg6][%cal Rd8f7] White mates.} Ra7 {[%emt 0:00:28]} 40. dxe6 {[%emt 0:00:45]} Qxd4 {[%emt 0:00:03]} 41. Nf7+ {[%emt 0:30:32] Weighted Error Value: White=0.66/Black=0.70} 1-0

[Event "1st Serbian League 2022"]
[Site "Vrnjacka Banja"]
[Date "2022.09.23"]
[Round "4.20"]
[White "Gurel, Ediz"]
[Black "Gokerkan, Cem Kaan"]
[Result "1-0"]
[ECO "B33"]
[WhiteElo "2437"]
[BlackElo "2465"]
[Annotator "TA"]
[PlyCount "124"]
[EventDate "2022.09.20"]
[EventType "team-tourn"]
[EventCountry "SRB"]
[SourceTitle "playchess.com"]
[Source "ChessBase"]
[SourceQuality "1"]
[TimeControl "40/5400+30:1800+30"]

{[%evp 18,124,34,15,45,44,85,72,81,72,77,79,96,74,72,65,123,111,138,135,133,135,136,126,141,144,134,133,130,119,162,164,150,151,171,141,217,175,197,202,186,195,189,208,187,189,231,231,257,190,256,195,193,206,206,206,206,206,206,206,206,206,206,202,202,0,202,199,189,173,191,190,194,191,199,189,206,206,206,199,279,279,271,268,385,374,324,347,833,1083,929,855,964,840,1185,1402,1447,1213,1207,789,2178,2069,1713,1609,29963,29966,29961,29966,5003]} 1. e4 {[%emt 1:31:00]} c5 {[%emt 0:00:39]} 2. Nf3 {[%emt 0:00:00][%cal Bg1f3,Bf3d4,Bd4b5,Bb5a3,Ba3c4][%mdl 32]} Nc6 {[%emt 0:00:06]} 3. d4 {[%emt 0:00:00]} cxd4 {[%emt 0:00:05]} 4. Nxd4 {[%emt 0:00:00]} Nf6 {[%emt 0:00:06]} 5. Nc3 {[%emt 0:00:00]} e5 {[%emt 0:00:06]} 6. Ndb5 {[%emt 0:00:00]} d6 {[%emt 0:00:11]} 7. Bg5 {[%emt 0:00:00]} a6 {[%emt 0:00:25]} 8. Bxf6 {[%emt 0:00:00]} gxf6 {[%emt 0:00:24]} 9. Na3 {[%emt 0:00:00]} f5 {[%emt 0:00:36]} 10. Nc4 {[%emt 0:00:00]} b5 {[%emt 0:45:13] B33: Sicilian: Pelikan and Sveshnikov Variations.} 11. Ne3 {[%emt 0:00:00] Pair of Knights!} Nd4 {[%emt 0:07:41] [#]} 12. Nxf5 $146 {[%emt 0:00:00]} ({Predecessor:} 12. exf5 Nxf5 13. Nxf5 Bxf5 14. Qf3 Bg6 15. Qc6+ Ke7 16. Nd5+ Ke6 17. Nc7+ Ke7 18. Nxa8 Bh6 19. Nb6 Re8 20. Rd1 {1-0 (21) Bere Filho,R-Caio,F Curitiba 1993}) 12... Bxf5 {[%emt 0:01:07] White is better.} 13. exf5 {[%emt 0:00:00]} Rc8 {[%emt 0:00:58]} 14. Bd3 {[%emt 0:00:00]} d5 {[%emt 0:07:32]} 15. O-O {[%emt 0:00:00] Threatens to win with Re1.} Bg7 {[%emt 0:00:05]} 16. Re1 {[%emt 0:00:00] Black must now prevent Qg4.} O-O {[%emt 0:06:03]} (16... Kf8 $1 $14) 17. f6 $16 {[%emt 0:00:00]} Qxf6 {[%emt 0:01:50]} (17... Bxf6 $2 18. Qg4+ Kh8 19. Qh5 $18) 18. Nxd5 {[%emt 0:00:00]} Qd8 {[%emt 0:08:34] [#]} 19. Ne3 $40 {[%emt 0:00:00][%mdl 128] White goes for the king.} (19. Qh5 $6 f5 $11) 19... f5 {[%emt 0:01:44]} 20. c3 {[%emt 0:00:00]} e4 {[%emt 0:00:05]} 21. Bf1 {[%emt 0:00:00]} (21. cxd4 $6 exd3 22. Qb3+ (22. Qxd3 Qxd4 23. Qb3+ Kh8 $14) 22... Kh8 $14) 21... Nc6 {[%emt 0:00:02]} 22. Qh5 {[%emt 0:00:00] Inhibits Qg5.} Qf6 {[%emt 0:02:58]} 23. a4 {[%emt 0:00:00]} Ne5 {[%emt 0:06:03]} 24. axb5 {[%emt 0:00:00]} axb5 {[%emt 0:00:01]} 25. Nd5 {[%emt 0:00:00]} (25. Ra7 Qg6 26. Qxg6 hxg6 $16) 25... Qd6 {[%emt 0:00:33]} 26. Rad1 {[%emt 0:00:00]} Ng4 {[%emt 0:06:02]} (26... Kh8 $16 27. Bxb5 Rb8) 27. Be2 {[%emt 0:02:15]} (27. Bxb5 $6 Qc5 $14) 27... Nf6 {[%emt 0:02:25]} 28. Qxf5 {[%emt 0:00:51]} Nxd5 {[%emt 0:00:11]} 29. Qxd5+ {[%emt 0:00:33]} Qxd5 {[%emt 0:00:01]} 30. Rxd5 {[%emt 0:00:01]} b4 {[%emt 0:00:23]} 31. Bg4 {[%emt 0:00:30]} Rce8 {[%emt 0:02:57]} 32. cxb4 {[%emt 0:00:29]} Bxb2 {[%emt 0:00:34]} 33. Bf5 {[%emt 0:01:03]} Re7 {[%emt 0:00:46]} (33... Bc3 {was called for.} 34. Rb1 e3) 34. g3 {[%emt 0:01:30]} ({Not} 34. Rxe4 {[#]} Rxf5 $1 35. Rxe7 (35. Rg4+ Bg7 $17) 35... Rxd5 $17) 34... Bc3 {[%emt 0:00:19]} 35. Rxe4 {[%emt 0:00:15]} Rxe4 {[%emt 0:00:38]} 36. Bxe4 {[%emt 0:00:01]} Bxb4 $18 {[%emt 0:00:01][%mdl 4096] Endgame KRB-KRB} 37. Rh5 {[%emt 0:00:08]} h6 {[%emt 0:00:22]} 38. Kg2 {[%emt 0:00:49]} Kg7 {[%emt 0:00:10]} 39. Rb5 {[%emt 0:00:05]} Bd6 {[%emt 0:00:11]} 40. Rb7+ {[%emt 0:00:34]} Rf7 {[%emt 0:00:09]} 41. Rb5 $2 {[%emt 0:33:43]} (41. Rb1 $18) 41... Re7 $2 {[%emt 0:03:34]} (41... Rf8 $1 $11) 42. Bd3 {[%emt 0:00:00]} Rd7 {[%emt 0:02:01]} 43. Rb6 {[%emt 0:00:00]} Bf8 {[%emt 0:02:23]} 44. Be4 {[%emt 0:00:00]} Rd2 {[%emt 0:00:46][%cal Od2f2]} 45. Rc6 {[%emt 0:00:00]} Kf7 {[%emt 0:06:13]} 46. Kf3 {[%emt 0:00:00]} Rb2 {[%emt 0:01:31]} 47. h4 {[%emt 0:00:00]} Bb4 {[%emt 0:01:57]} 48. Bc2 {[%emt 0:00:00]} Ke7 {[%emt 0:00:36]} (48... h5 $142 49. Bg6+ Kg7 50. Bxh5 Be1 51. Rc7+ Kh8) 49. Kg4 {[%emt 0:00:00]} Be1 {[%emt 0:00:38]} 50. f4 {[%emt 0:00:00][%cal Bf2f4,Bf4f5,Bf5f6,Bf6f7][%mdl 32]} Ra2 {[%emt 0:04:41]} (50... Kd7 $142) 51. f5 {[%emt 0:00:00] And now Re6+ would win.} Kd7 {[%emt 0:00:29]} 52. Rc4 {[%emt 0:00:00]} ({Weaker is} 52. Rxh6 Rxc2 53. Re6 Bf2 $14) 52... Ra3 $2 {[%emt 0:00:38]} (52... Ra6 53. Re4 Bf2) 53. Rd4+ {[%emt 0:00:00]} Kc7 {[%emt 0:01:10]} 54. f6 {[%emt 0:02:44] f7 is the strong threat.} Rxg3+ {[%emt 0:00:54]} 55. Kf5 {[%emt 0:00:01] Hoping for f7.} Bc3 {[%emt 0:08:15]} 56. Rc4+ {[%emt 0:01:24]} Kd6 {[%emt 0:00:01]} 57. Bd1 {[%emt 0:00:06]} Bb2 {[%emt 0:02:11]} 58. Bh5 {[%emt 0:00:33] Strongly threatening f7.} Rg1 {[%emt 0:01:48]} 59. f7 {[%emt 0:00:24]} Rf1+ {[%emt 0:00:30]} 60. Kg6 {[%emt 0:00:11]} Rg1+ {[%emt 0:01:23]} 61. Kh7 {[%emt 0:00:46]} Rf1 {[%emt 0:01:05]} 62. Rc8 {[%emt 0:00:05]} Kd5 {[%emt 0:00:30] Weighted Error Value: White=0.13 (very precise) /Black=0.40} 1-0

[Event "1st Serbian League 2022"]
[Site "Vrnjacka Banja"]
[Date "2022.09.23"]
[Round "4.21"]
[White "Arsovic, Goran"]
[Black "Markus, Robert"]
[Result "0-1"]
[ECO "E69"]
[WhiteElo "2362"]
[BlackElo "2615"]
[Annotator "TA"]
[PlyCount "88"]
[EventDate "2022.09.20"]
[EventType "team-tourn"]
[EventCountry "SRB"]
[SourceTitle "playchess.com"]
[Source "ChessBase"]
[SourceQuality "1"]
[TimeControl "40/5400+30:1800+30"]

{[%evp 20,88,26,27,26,25,33,29,54,51,54,50,57,52,75,54,54,55,48,43,42,32,41,36,65,46,60,45,42,31,41,0,0,0,0,0,0,0,0,-6,0,0,0,-14,0,0,0,0,0,0,0,0,0,-10,-27,-40,0,0,0,0,0,-33,0,-94,-87,-792,-719,-29991,-29992,-29993,-29994]} 1. d4 {[%emt 0:00:31]} Nf6 {[%emt 0:00:21]} 2. Nf3 {[%emt 0:00:16]} d6 {[%emt 0:00:11]} 3. g3 {[%emt 0:00:40]} g6 {[%emt 0:00:10]} 4. Bg2 {[%emt 0:00:13]} Bg7 {[%emt 0:00:09]} 5. c4 {[%emt 0:00:31]} O-O {[%emt 0:00:15]} 6. Nc3 {[%emt 0:00:22]} Nbd7 {[%emt 0:00:09]} 7. O-O {[%emt 0:00:29]} e5 {[%emt 0:00:08]} 8. e4 {[%emt 0:00:15]} c6 {[%emt 0:00:06]} 9. b3 {[%emt 0:00:38]} Re8 {[%emt 0:00:18] 9...Re8 was played by the boomers.} 10. h3 {[%emt 0:00:30]} a6 {[%emt 0:00:07]} 11. d5 {[%emt 0:08:06]} cxd5 {[%emt 0:08:50] E69: King's Indian: Fianchetto: 6...Nbd7 7 0-0 e5 8 e4 c6 9 h3.} 12. cxd5 {[%emt 0:00:50]} b5 {[%emt 0:00:05]} 13. Ne1 {[%emt 0:02:16][%cal Bf3e1,Be1d3,Bd3b2,Bb2c4][%mdl 32]} b4 $5 {[%emt 0:09:21][%mdl 4] White has an edge. Leaves trodden paths.} 14. Na4 {[%emt 0:03:40]} Nb6 {[%emt 0:00:49]} 15. Nxb6 {[%emt 0:04:28]} Qxb6 {[%emt 0:00:10]} 16. Be3 {[%emt 0:00:39] [#]} Qb5 $146 {[%emt 0:10:46]} ({Predecessor:} 16... Qb7 17. Nd3 Bd7 18. Qd2 a5 19. Rfc1 Rec8 20. Nb2 Ne8 21. Rxc8 Bxc8 22. a3 f5 {1-0 (43) Maiorov,N (2527)-Sadhwani,R (2298) Kazan 2017}) 17. Nd3 {[%emt 0:06:15]} a5 {[%emt 0:02:10]} 18. Nb2 {[%emt 0:03:26]} Ba6 {[%emt 0:04:31]} 19. Nc4 {[%emt 0:03:54]} Qb8 {[%emt 0:08:14]} 20. Rc1 {[%emt 0:21:08]} Rc8 {[%emt 0:05:36]} 21. Qe2 {[%emt 0:01:33]} Ne8 {[%emt 0:28:30]} 22. Rfe1 {[%emt 0:15:31]} Nc7 {[%emt 0:04:21]} 23. Qd2 {[%emt 0:13:02]} Bxc4 {[%emt 0:00:32]} 24. Rxc4 {[%emt 0:00:04]} Nb5 {[%emt 0:00:06]} 25. Rec1 {[%emt 0:01:12]} (25. Qd3 $5 {[%cal Rc4c8]} Qb7 26. Rec1 $14) 25... Nc3 $1 {[%emt 0:00:23]} 26. Rxc8+ {[%emt 0:01:29]} Qxc8 {[%emt 0:00:27]} 27. a4 {[%emt 0:01:26]} Qf8 {[%emt 0:03:36]} 28. g4 {[%emt 0:02:03]} f5 {[%emt 0:00:28] Hoping for ...f4.} 29. f3 {[%emt 0:00:05]} f4 {[%emt 0:01:47]} 30. Bf2 {[%emt 0:00:04]} Bf6 {[%emt 0:00:11][%cal Bg7f6,Bf6d8,Bd8b6][%mdl 32]} 31. h4 {[%emt 0:01:37]} Qc8 {[%emt 0:03:52][%cal Oc3e2] And now ...Ne2+! would win.} 32. Kh2 {[%emt 0:01:13]} Bd8 {[%emt 0:00:34]} 33. g5 {[%emt 0:00:40]} Qb7 {[%emt 0:00:07]} 34. Bh3 {[%emt 0:03:22]} Bb6 {[%emt 0:00:09]} 35. Be6+ {[%emt 0:00:45]} Kg7 {[%emt 0:00:11]} 36. Kg2 {[%emt 0:02:22]} Rh8 {[%emt 0:04:50]} 37. Rh1 {[%emt 0:01:31]} Bxf2 {[%emt 0:00:57]} 38. Qxf2 {[%emt 0:00:05]} h6 {[%emt 0:00:54]} 39. gxh6+ {[%emt 0:00:51]} Rxh6 {[%emt 0:00:07]} 40. Bg4 {[%emt 0:01:11]} (40. h5 $5) 40... Qc7 {[%emt 0:02:17]} 41. Qf1 {[%emt 0:06:56]} (41. h5 $11 {keeps the balance.}) 41... Qc5 $17 {[%emt 0:06:12] Black is more active.} 42. Qa6 $2 {[%emt 0:02:31][%mdl 8192] [#]} (42. Qe1 $17) 42... Nd1 $1 $19 {[%emt 0:00:57][%mdl 512] ( -> ...Qf2+)} 43. Qb7+ {[%emt 0:06:18]} (43. Qe2 Ne3+) 43... Kf6 {[%emt 0:00:59]} 44. Rf1 {[%emt 0:01:02]} Ne3+ {[%emt 0:01:04] Weighted Error Value: White=0.39/Black=0.06 (flawless)} 0-1

[Event "1st Serbian League 2022"]
[Site "Vrnjacka Banja"]
[Date "2022.09.23"]
[Round "4.22"]
[White "Kovacevic, Aleksandar"]
[Black "Ristic, Nenad"]
[Result "1-0"]
[ECO "C42"]
[WhiteElo "2471"]
[BlackElo "2267"]
[Annotator "TA"]
[PlyCount "53"]
[EventDate "2022.09.20"]
[EventType "team-tourn"]
[EventCountry "SRB"]
[SourceTitle "playchess.com"]
[Source "ChessBase"]
[SourceQuality "1"]
[TimeControl "40/5400+30:1800+30"]

{[%evp 19,53,18,48,50,46,61,71,51,72,62,124,133,175,175,208,210,195,173,326,364,539,517,912,886,29968,29949,29989,29990,29991,29992,29992,29993,29993,29994,29994,29995]} 1. e4 {[%emt 0:00:14]} e5 {[%emt 0:00:25]} 2. Nf3 {[%emt 0:00:27]} Nf6 {[%emt 0:00:04]} 3. Nxe5 {[%emt 0:00:36]} d6 {[%emt 0:00:12]} 4. Nf3 {[%emt 0:00:11]} Nxe4 {[%emt 0:00:04]} 5. d4 {[%emt 0:00:29]} d5 {[%emt 0:00:05]} 6. Bd3 {[%emt 0:00:15]} Bd6 {[%emt 0:00:04]} 7. O-O {[%emt 0:00:12]} O-O {[%emt 0:00:04]} 8. c4 {[%emt 0:00:30]} c6 {[%emt 0:00:03]} 9. Nc3 {[%emt 0:00:20]} Nxc3 {[%emt 0:02:43]} 10. bxc3 {[%emt 0:00:05]} Bg4 {[%emt 0:01:33]} 11. c5 {[%emt 0:02:23] C42: Petroff Defence: 3 Nxe5 and unusual White 3rd moves.} Be7 {[%emt 0:13:21] [#]} 12. Qb3 $146 {[%emt 0:05:47]} ({Predecessor:} 12. Bf4 Nd7 13. Qb1 Bxf3 14. gxf3 Bg5 15. Bd6 Be7 16. Bg3 b5 17. cxb6 Nxb6 18. Bxh7+ Kh8 {1-0 (51) Liu,Y-Lappalainen,M (1829) Kemer 2009}) 12... b6 {[%emt 0:22:15]} 13. Ne5 {[%emt 0:00:39] White is better.} Bc8 {[%emt 0:06:02]} 14. Qc2 {[%emt 0:04:39] White has more active pieces.} f5 {[%emt 0:14:58]} (14... h6 $1 $14) 15. c4 $16 {[%emt 0:10:16]} Kh8 {[%emt 0:10:51]} 16. cxd5 {[%emt 0:02:06]} cxd5 {[%emt 0:00:20]} 17. Re1 {[%emt 0:02:48]} bxc5 {[%emt 0:07:57]} 18. dxc5 {[%emt 0:00:17] And now Bf4 would win.} Qa5 $2 {[%emt 0:00:24]} (18... Bf6 19. c6 (19. Bxf5 Bxe5 20. Rxe5 Nc6 $17) 19... Bxe5 20. Rxe5 Qd6) 19. Bb2 $18 {[%emt 0:14:41][%cal Oe5g6] Strongly threatening Ng6+!} ({Less strong is} 19. Ng6+ hxg6 20. Rxe7 Nc6 $16) 19... Qxc5 {[%emt 0:01:10]} (19... Qc7 $142 20. Rab1 Na6) 20. Qe2 {[%emt 0:03:15] aiming for Rac1.} Bf6 {[%emt 0:02:03]} (20... Qb4 $142 21. Ng6+ hxg6) 21. Rac1 {[%emt 0:03:18]} Qb6 {[%emt 0:01:01] [#]} 22. Rxc8 $1 {[%emt 0:04:55][%mdl 576] Remove Defender. White mates.} Rxc8 {[%emt 0:00:27]} (22... Nd7 23. Rxa8) 23. Bxf5 {[%emt 0:01:37] This bishop pair is nice.} Na6 {[%emt 0:07:05]} 24. Qh5 {[%emt 0:02:47][%csl Gf5][%cal Rh5h7]} g6 {[%emt 0:02:31]} 25. Nxg6+ {[%emt 0:00:23]} Kg8 {[%emt 0:00:17]} 26. Ne7+ {[%emt 0:00:08][%mdl 64] [#] Deflection, Double Attack} Kf8 {[%emt 0:01:31]} 27. Qh6+ {[%emt 0:00:07] Black did not feel at home in the position after the opening.  Weighted Error Value: White=0.00 (flawless) /Black=0.74} 1-0

[Event "1st Serbian League 2022"]
[Site "Vrnjacka Banja"]
[Date "2022.09.23"]
[Round "4.23"]
[White "Rajkovic, Dusan"]
[Black "Brenjo, Slavisa"]
[Result "1-0"]
[ECO "E99"]
[WhiteElo "2246"]
[BlackElo "2409"]
[Annotator "TA"]
[PlyCount "85"]
[EventDate "2022.09.20"]
[EventType "team-tourn"]
[EventCountry "SRB"]
[SourceTitle "playchess.com"]
[Source "ChessBase"]
[SourceQuality "1"]
[TimeControl "40/5400+30:1800+30"]

{[%evp 23,85,0,0,0,0,-7,-7,-14,-10,0,0,-25,-10,-55,-18,-135,-170,-97,0,0,0,0,0,0,0,0,0,0,90,97,176,177,183,164,183,183,183,183,270,262,257,258,252,239,331,322,651,636,584,551,525,520,521,252,515,505,578,578,538,533,4718,4710,1590,968]} 1. d4 {[%emt 0:03:04]} Nf6 {[%emt 0:00:11]} 2. c4 {[%emt 0:00:08]} g6 {[%emt 0:00:14]} 3. Nc3 {[%emt 0:00:17]} Bg7 {[%emt 0:00:10]} 4. e4 {[%emt 0:00:06]} d6 {[%emt 0:00:15]} 5. Nf3 {[%emt 0:01:06]} O-O {[%emt 0:00:14]} 6. Be2 {[%emt 0:00:11]} e5 {[%emt 0:00:34]} 7. O-O {[%emt 0:00:53]} Nc6 {[%emt 0:00:22]} 8. d5 {[%emt 0:00:10]} Ne7 {[%emt 0:00:09]} 9. Ne1 {[%emt 0:06:57]} Nd7 {[%emt 0:00:34]} 10. g4 {[%emt 0:00:15]} f5 {[%emt 0:01:04]} 11. f3 {[%emt 0:00:07]} Nf6 {[%emt 0:05:11]} 12. Be3 {[%emt 0:03:52]} f4 {[%emt 0:08:36]} 13. Bf2 {[%emt 0:01:07] E99: King's Indian: Classical Main Line: 9 Ne1 Nd7 10 f3 f5.} g5 {[%emt 0:00:25]} 14. Nd3 {[%emt 0:02:54]} h5 {[%emt 0:01:11]} 15. h3 {[%emt 0:00:06] The position is equal.} (15. gxh5 {is more complex.} Bh3 16. Re1 Nxh5 17. c5) 15... Ng6 {[%emt 0:04:08]} 16. c5 {[%emt 0:02:07]} Rf7 {[%emt 0:02:52]} 17. Rc1 {[%emt 0:05:41]} Bf8 {[%emt 0:01:44] [#]} 18. cxd6 $146 {[%emt 0:10:54]} (18. Kg2 {feels hotter.} a6 19. Rh1 Rb8 20. Kf1) ({Predecessor:} 18. Nb5 hxg4 19. hxg4 Rh7 20. cxd6 cxd6 21. Nxa7 Bd7 22. Qb3 Nh4 23. Bb6 Qe7 24. Kf2 Bxg4 25. fxg4 Nxe4+ {0-1 (63) Haugli,P (2260)-Jones,S (2160) London 2015}) 18... Bxd6 {[%emt 0:14:56]} 19. Nc5 {[%emt 0:03:41]} (19. Kg2 $11 {remains equal.}) 19... hxg4 $1 $17 {[%emt 0:05:11]} 20. hxg4 {[%emt 0:00:26]} Nxg4 {[%emt 0:06:59]} 21. fxg4 $11 {[%emt 0:00:42] Ne6 is the strong threat.} f3 $1 {[%emt 0:00:33]} 22. Bxf3 {[%emt 0:41:44] Strongly threatening Ne6.} Qf8 $1 {[%emt 0:00:38][%csl LRc5,LRf3]} 23. Ne6 {[%emt 0:00:20]} (23. Qd2 Rxf3 24. Qxg5 Qg7 $17) 23... Bxe6 {[%emt 0:01:34]} 24. dxe6 {[%emt 0:00:05]} Rxf3 {[%emt 0:00:12]} 25. Nd5 $36 {[%emt 0:00:51][%mdl 2048] Prevents Qf4. White is more active.} c6 {[%emt 0:27:37]} (25... Rh3 $1 $11 26. Kg2 (26. Rc3 Qh6 $17) 26... Qh6) 26. Kg2 $1 $16 {[%emt 0:00:07] And now e7 would win. Black is now going downhill.} Rf4 {[%emt 0:03:53]} (26... cxd5 $16 27. Qxf3 Nf4+ 28. Kg1 Qh6) 27. Nxf4 $18 {[%emt 0:00:14]} Nxf4+ {[%emt 0:00:14]} 28. Kg3 $1 {[%emt 0:00:44]} Qh6 {[%emt 0:05:41][%csl Gf4][%cal Rh6h3]} 29. Rh1 {[%emt 0:00:47] Against Qh3+} Qxe6 {[%emt 0:00:09]} 30. Be3 {[%emt 0:03:16]} Rd8 {[%emt 0:00:35] [#]} (30... Rf8 {keeps fighting.} 31. Qc2 Rf7) 31. Rc2 $1 {[%emt 0:01:17] Threatens to win with Rch2.} (31. Bxa7 Be7 32. Qf3 Rd2 $11) 31... Be7 {[%emt 0:04:44]} 32. Rd2 {[%emt 0:00:14] The board is on fire.} Rxd2 {[%emt 0:01:07]} 33. Qxd2 {[%emt 0:00:11] Hoping for Qh2.} Qc4 {[%emt 0:03:00] [#]} 34. Kf3 {[%emt 0:01:39]} ({Worse is} 34. Bxf4 gxf4+ 35. Kf3 Qxa2 $11) 34... Qxa2 $2 {[%emt 0:01:21]} (34... Kg7 35. Qh2 (35. Bxf4 exf4 36. Qc3+ Qxc3+ 37. bxc3 Kf7 $18) (35. Bxa7 Ng6 $16) 35... Qg8 36. Bxa7 Kf7 37. Qh7+ Qxh7 38. Rxh7+ Ke6) 35. Qh2 {[%emt 0:01:51] White threatens Qh8+ and mate.} ({Weaker is} 35. Bxf4 gxf4 36. Qc3 Qe6 $14) 35... Kf8 {[%emt 0:01:01]} 36. Qh8+ {[%emt 0:01:09]} (36. Bxf4 exf4 37. Qh8+ Qg8 38. Qxg8+ Kxg8 $18) 36... Qg8 {[%emt 0:00:07]} 37. Qxe5 {[%emt 0:00:16] Black must now prevent Rh8.} Ng6 {[%emt 0:00:13] Against Rh8} 38. Qf5+ {[%emt 0:00:44]} (38. Qb8+ $142 Kf7 39. Qxb7) 38... Ke8 $2 {[%emt 0:00:11]} (38... Qf7 39. Ke2 (39. Bxa7 Nh4+ 40. Rxh4 gxh4 $14) 39... Nh4 40. Qxf7+ Kxf7 41. Bxa7 Ke6) 39. Qc8+ {[%emt 0:02:16] White is clearly winning.} Bd8 {[%emt 0:00:38]} 40. Rd1 {[%emt 0:01:26]} Qf7+ {[%emt 0:00:36]} 41. Ke2 {[%emt 0:31:08][%csl Gd1][%cal Rc8d8]} Qc4+ {[%emt 0:05:44]} 42. Rd3 {[%emt 0:00:00]} Qc2+ {[%emt 0:01:31]} 43. Rd2 {[%emt 0:00:00] Weighted Error Value: White=0.20 (precise) /Black=0.54} 1-0